[Event "Czech Championship 2022"]
[Site "Usti nad Labem"]
[Date "2022.05.16"]
[Round "3.1"]
[White "Navara, David"]
[Black "Cernousek, Lukas"]
[Result "1/2-1/2"]
[ECO "C54"]
[WhiteElo "2682"]
[BlackElo "2440"]
[Annotator "TA"]
[PlyCount "81"]
[EventDate "2022.05.12"]
[EventType "swiss"]
[EventCountry "CZE"]
[SourceTitle "playchess.com"]
[Source "ChessBase"]
[SourceQuality "1"]
[TimeControl "40/5400+30:1800+30"]

{[%evp 13,81,42,41,33,23,22,29,12,16,25,21,23,23,10,17,12,16,13,14,17,14,22,15,21,16,10,37,39,38,30,29,23,38,0,0,0,0,0,0,0,0,0,0,0,0,0,0,0,0,0,0,0,0,0,0,0,0,0,0,0,0,0,0,0,0,0,0,0,0,0]} 1. e4 {[%emt 0:00:03]} e5 {[%emt 0:00:06]} 2. Nf3 {[%emt 0:00:04]} Nc6 {[%emt 0:00:05]} 3. Bc4 {[%emt 0:01:24]} Bc5 {[%emt 0:00:08]} 4. c3 {[%emt 0:01:26]} Nf6 {[%emt 0:00:07]} 5. d3 {[%emt 0:00:08]} O-O {[%emt 0:00:29]} 6. O-O {[%emt 0:00:08]} d5 {[%emt 0:00:19]} 7. exd5 {[%emt 0:00:07]} Nxd5 {[%emt 0:00:04]} 8. a4 {[%emt 0:00:09] C54: Giuoco Piano: 4 c3 Nf6, main lines with 5 d4 and 5 d3.} a5 {[%emt 0:01:50]} 9. Re1 {[%emt 0:00:32]} Bg4 {[%emt 0:00:22]} 10. Nbd2 {[%emt 0:00:08] White has an edge.} Nb6 {[%emt 0:00:17]} 11. Bb5 {[%emt 0:00:24]} Bd6 {[%emt 0:00:26]} 12. Ne4 {[%emt 0:00:18]} Na7 {[%emt 0:01:03]} 13. h3 {[%emt 0:00:26]} Bh5 {[%emt 0:02:14]} 14. d4 {[%emt 0:07:07]} (14. Be3 {is interesting.} Nxb5 15. axb5 f5 16. Nxd6 cxd6 17. Qb3+) 14... Nxb5 {[%emt 0:01:38]} (14... exd4 {feels hotter.} 15. Qxd4 Nxb5 16. axb5 Bxf3 17. Nxd6 Qxd6 18. Qxd6 cxd6 19. gxf3 a4) 15. axb5 {[%emt 0:00:07]} exd4 {[%emt 0:01:13]} (15... Nd7 {seems wilder.} 16. Bg5 f6 17. Bh4 Re8) 16. Nxd6 {[%emt 0:02:58]} Qxd6 {[%emt 0:02:03]} 17. Qxd4 {[%emt 0:00:48]} Bxf3 {[%emt 0:00:46]} 18. Qxd6 {[%emt 0:00:07]} cxd6 {[%emt 0:00:07]} 19. gxf3 {[%emt 0:00:07]} Rfd8 {[%emt 0:00:39]} 20. Re7 {[%emt 0:05:02]} Rd7 {[%emt 0:00:08]} 21. Rxd7 {[%emt 0:01:05]} Nxd7 $14 {[%emt 0:00:02][%mdl 4096] Endgame KRB-KRN} 22. Bf4 {[%emt 0:00:17]} Nb6 {[%emt 0:00:51] [#]} 23. Bxd6 $146 {[%emt 0:03:18]} ({Predecessor:} 23. b3 a4 24. bxa4 Rxa4 25. Re1 h6 26. Bxd6 Ra5 27. Rb1 Nc4 28. Bg3 Na3 29. Rb3 Nxb5 30. Kg2 Na3 31. Rxb7 Rc5 32. Bd6 {½-½ (32) Duda,J (2756)-Shirov,A (2673) Terme Catez 2021}) 23... Nc4 {[%emt 0:00:13][%csl LRb2,LRd6] The position is equal.} 24. Bc7 {[%emt 0:07:00]} Nxb2 {[%emt 0:00:18]} 25. Rxa5 {[%emt 0:00:09]} Rxa5 {[%emt 0:00:10]} 26. Bxa5 $11 {[%emt 0:00:06] KB-KN} f6 {[%emt 0:00:53]} 27. f4 {[%emt 0:01:23]} f5 {[%emt 0:00:15]} 28. Bb6 {[%emt 0:05:59]} Kf7 {[%emt 0:00:16]} 29. Kg2 {[%emt 0:00:27]} Ke6 {[%emt 0:01:01]} 30. Bd4 {[%emt 0:00:23]} g6 {[%emt 0:00:13]} 31. Kg3 {[%emt 0:00:13]} Nc4 {[%emt 0:03:45]} 32. Kh4 {[%emt 0:01:50]} h6 {[%emt 0:02:40]} 33. Bg7 {[%emt 0:02:35]} h5 {[%emt 0:02:40]} 34. Kg5 {[%emt 0:02:23]} Kf7 {[%emt 0:00:09]} 35. Bd4 {[%emt 0:00:11]} Nd6 {[%emt 0:01:53]} 36. b6 $1 {[%emt 0:00:12]} Ne4+ {[%emt 0:00:39]} 37. Kh6 {[%emt 0:00:07] [#] c4 is the strong threat.} Nd2 {[%emt 0:00:14]} 38. Kh7 {[%emt 0:03:19]} Nc4 {[%emt 0:00:07]} 39. Kh6 {[%emt 0:00:12]} Nd2 {[%emt 0:00:06]} 40. Be3 {[%emt 0:00:16]} Nc4 {[%emt 0:00:09]} 41. Bd4 {[%emt 0:30:07] Weighted Error Value: White=0.02 (flawless) /Black=0.01 (flawless)} 1/2-1/2

[Event "Czech Championship 2022"]
[Site "Usti nad Labem"]
[Date "2022.05.16"]
[Round "3.2"]
[White "Hracek, Zbynek"]
[Black "Gnojek, Petr"]
[Result "1-0"]
[ECO "B81"]
[WhiteElo "2570"]
[BlackElo "2302"]
[Annotator "TA"]
[PlyCount "99"]
[EventDate "2022.05.12"]
[EventType "swiss"]
[EventCountry "CZE"]
[SourceTitle "playchess.com"]
[Source "ChessBase"]
[SourceQuality "1"]
[TimeControl "40/5400+30:1800+30"]

{[%evp 15,99,34,55,37,39,30,66,49,85,27,122,131,125,115,117,127,132,134,135,125,133,113,119,112,129,142,129,126,126,129,171,93,87,91,85,82,106,89,109,90,174,176,180,173,168,100,160,168,166,166,152,145,168,160,192,176,208,214,258,247,589,539,586,586,562,538,674,650,947,947,830,545,29972,29973,29973,29974,29973,29974,29967,29968,29981,29982,29982,29983,29983,29984]} 1. e4 {[%emt 0:00:04]} c5 {[%emt 0:00:06]} 2. Nf3 {[%emt 0:00:08]} e6 {[%emt 0:00:07]} 3. d4 {[%emt 0:00:13]} cxd4 {[%emt 0:00:06]} 4. Nxd4 {[%emt 0:00:05]} Nf6 {[%emt 0:00:07]} 5. Nc3 {[%emt 0:00:04]} d6 {[%emt 0:00:05]} 6. g4 {[%emt 0:00:14]} h6 {[%emt 0:00:06]} 7. Rg1 {[%emt 0:00:46]} Nc6 {[%emt 0:00:15]} 8. Be3 {[%emt 0:00:07]} a6 {[%emt 0:07:13] 8...Be7 is the modern continuation.} 9. Nxc6 $5 {[%emt 0:00:30][%mdl 4] A promising side line. B81: Sicilian Scheveningen: Keres Attack.} bxc6 {[%emt 0:00:05]} 10. Qf3 {[%emt 0:00:15]} d5 {[%emt 0:12:49]} 11. O-O-O {[%emt 0:00:45] [#] White is slightly better.} Bb4 $146 {[%emt 0:12:55]} ({Predecessor:} 11... Qa5 12. exd5 cxd5 13. Bd4 Rb8 14. h4 Bc5 15. Be5 Rb7 16. g5 hxg5 17. Rxg5 Nd7 18. Bxg7 Rxh4 19. Nxd5 exd5 20. Qxd5 {1-0 (27) Bukhteeva,V (2165)-Chernyak,V (1939) St Petersburg 2012}) 12. Bd2 {[%emt 0:15:35]} ({Better is} 12. exd5 $16 cxd5 13. Bd4) 12... Bxc3 {[%emt 0:21:34]} (12... Qe7 $11) 13. Qxc3 $16 {[%emt 0:03:30]} (13. Bxc3 $6 Nxe4 14. Qxe4 dxe4 $11) 13... Nxe4 {[%emt 0:00:13]} 14. Qxg7 {[%emt 0:00:13]} Qf6 {[%emt 0:00:04]} 15. Qxf6 {[%emt 0:00:40]} Nxf6 {[%emt 0:00:04]} 16. Bc3 {[%emt 0:10:23]} Ke7 {[%emt 0:00:04]} 17. Bb4+ {[%emt 0:00:50] A strong pair of Bishops.} Ke8 {[%emt 0:06:46]} 18. Rd3 {[%emt 0:04:47] [#] And now Bc3 would win. White is more active.} Rg8 {[%emt 0:00:59]} 19. Be2 {[%emt 0:05:21]} e5 {[%emt 0:17:11]} 20. Re3 {[%emt 0:26:09]} e4 {[%emt 0:00:07]} 21. Bc3 {[%emt 0:00:21]} Rg6 {[%emt 0:01:29]} 22. f3 {[%emt 0:04:33]} Ra7 {[%emt 0:00:30]} 23. Bxf6 {[%emt 0:07:47]} (23. f4 $18) 23... Rxf6 {[%emt 0:00:04]} 24. fxe4 {[%emt 0:00:08]} Re7 {[%emt 0:00:03]} 25. Bd3 {[%emt 0:07:41]} Rg6 {[%emt 0:10:39]} 26. Kd2 {[%emt 0:01:45] exd5 is the strong threat.} dxe4 {[%emt 0:01:59]} 27. Rge1 {[%emt 0:07:13]} Bxg4 {[%emt 0:03:39]} (27... Rxg4 $16 28. Bxe4 (28. Rxe4 Rgxe4 29. Bxe4 c5 $11) 28... Kd8) 28. Rxe4 $18 {[%emt 0:01:01]} Rxe4 {[%emt 0:00:05]} 29. Rxe4+ $16 {[%emt 0:00:57][%mdl 4096] Endgame KRB-KRB} ({Resist} 29. Bxe4 $6 Rd6+ 30. Bd3+ Kd7 $16) 29... Be6 {[%emt 0:01:44]} 30. Re2 {[%emt 0:01:39] Inhibits Rg2.} (30. Bxa6 $18 Kd7 31. a4) 30... Rg5 {[%emt 0:00:29]} (30... Rg4 $142) 31. Bxa6 {[%emt 0:00:14]} Kd7 {[%emt 0:00:05]} 32. Bd3 {[%emt 0:00:32]} c5 {[%emt 0:02:20]} 33. b3 {[%emt 0:01:01]} Kd6 {[%emt 0:00:19]} 34. a4 {[%emt 0:01:15][%cal Ba2a4,Ba4a5][%mdl 32]} Rg1 {[%emt 0:01:49]} 35. a5 {[%emt 0:00:17]} Ra1 {[%emt 0:00:11]} 36. a6 {[%emt 0:00:08]} Bc8 {[%emt 0:01:17]} 37. Re8 {[%emt 0:00:58]} Kc7 {[%emt 0:01:22] [#]} (37... Be6 {is a better chance.} 38. Rd8+ Ke5) 38. Re7+ $18 {[%emt 0:00:14]} Kb8 {[%emt 0:00:00]} 39. Rxf7 {[%emt 0:00:08]} Bxa6 {[%emt 0:00:00]} 40. Rh7 {[%emt 0:00:50]} Bxd3 {[%emt 0:00:23]} 41. Kxd3 {[%emt 0:30:06] KR-KR} ({Worse is} 41. cxd3 Ra2+ 42. Kc3 Rxh2 $11) 41... Rd1+ {[%emt 0:01:20]} 42. Kc4 {[%emt 0:00:00]} Rd2 {[%emt 0:00:10]} 43. c3 {[%emt 0:00:00][%cal Bc2c3,Bc3c4,Bc4c5,Bc5c6][%mdl 32]} Rxh2 {[%emt 0:00:05]} 44. Kxc5 {[%emt 0:00:00] White mates.} Rh3 {[%emt 0:00:53]} 45. Kb4 {[%emt 0:00:00]} Kc8 {[%emt 0:01:46]} 46. c4 {[%emt 0:00:00]} Kd8 {[%emt 0:00:04]} 47. c5 {[%emt 0:00:00]} Ke8 {[%emt 0:00:08]} 48. c6 {[%emt 0:00:00]} Kd8 {[%emt 0:00:13]} 49. Kc4 {[%emt 0:00:00]} Rh4+ {[%emt 0:00:33]} 50. Kc5 {[%emt 0:00:00] Weighted Error Value: White=0.08 (flawless) /Black=0.42} 1-0

[Event "Czech Championship 2022"]
[Site "Usti nad Labem"]
[Date "2022.05.16"]
[Round "3.3"]
[White "Rubes, Jan"]
[Black "Plat, Vojtech"]
[Result "0-1"]
[ECO "E69"]
[WhiteElo "2386"]
[BlackElo "2547"]
[Annotator "TA"]
[PlyCount "66"]
[EventDate "2022.05.12"]
[EventType "swiss"]
[EventCountry "CZE"]
[SourceTitle "playchess.com"]
[Source "ChessBase"]
[SourceQuality "1"]
[TimeControl "40/5400+30:1800+30"]

{[%evp 27,66,41,45,12,40,0,0,0,0,0,0,0,0,0,0,6,2,-14,0,0,0,0,0,0,6,0,77,79,81,69,62,-43,-37,-37,-37,-205,-188,-673,-620,-29993,-29994]} 1. c4 {[%emt 0:00:02]} d6 {[%emt 0:00:44]} 2. Nc3 {[%emt 0:01:43]} e5 {[%emt 0:00:08]} 3. Nf3 {[%emt 0:00:58]} Nf6 {[%emt 0:00:18]} 4. d4 {[%emt 0:00:07]} exd4 {[%emt 0:00:06]} 5. Nxd4 {[%emt 0:00:05]} g6 {[%emt 0:00:17]} 6. g3 {[%emt 0:02:14]} Bg7 {[%emt 0:00:12]} 7. Bg2 {[%emt 0:00:04]} O-O {[%emt 0:00:09]} 8. O-O {[%emt 0:00:05]} Nbd7 {[%emt 0:02:10]} 9. e4 {[%emt 0:13:05]} a5 {[%emt 0:06:23][%cal Ba7a5,Ba5a4][%mdl 32]} 10. h3 {[%emt 0:00:22]} Nc5 {[%emt 0:01:24]} 11. Be3 {[%emt 0:03:44]} Re8 {[%emt 0:01:28]} 12. Qc2 {[%emt 0:00:06]} c6 {[%emt 0:07:20]} 13. Rfe1 {[%emt 0:00:58]} Nfd7 {[%emt 0:12:24]} 14. Rad1 {[%emt 0:04:10]} a4 {[%emt 0:00:17]} 15. Nf3 {[%emt 0:16:56] E69: King's Indian: Fianchetto: 6...Nbd7 7 0-0 e5 8 e4 c6 9 h3.} Qe7 {[%emt 0:04:01]} (15... Qa5 $5 {[%cal Ra4a3]}) 16. Bd4 {[%emt 0:08:09] [#]} Ne5 $146 {[%emt 0:05:53]} ({Predecessor:} 16... Bxd4 17. Nxd4 Ne5 18. Qe2 g5 19. f3 Qf6 20. Qf1 Kg7 {½-½ (20) Varhol,M (2001)-Kubikova,H (2273) Slovakia email 2001}) 17. Nxe5 {[%emt 0:00:52] The position is equal.} dxe5 {[%emt 0:01:51]} 18. Bxc5 {[%emt 0:00:46]} Qxc5 {[%emt 0:00:03]} 19. Nxa4 {[%emt 0:00:06]} Qb4 {[%emt 0:00:12]} 20. b3 {[%emt 0:00:16]} Be6 {[%emt 0:00:29][%cal Oe6c4]} 21. c5 {[%emt 0:07:43]} Bf8 {[%emt 0:04:13]} 22. Bf1 {[%emt 0:05:36]} Red8 {[%emt 0:06:32][%mdl 1024] Black has compensation.} 23. Kh2 {[%emt 0:02:33]} h5 {[%emt 0:05:53]} 24. h4 {[%emt 0:01:34]} Bg4 {[%emt 0:03:40]} 25. Be2 {[%emt 0:00:37]} Be6 {[%emt 0:03:33]} 26. Bf1 {[%emt 0:00:22]} Rd4 {[%emt 0:01:51] [#]} (26... Bg4 $11 27. Be2 Be6) 27. Rxd4 $1 $16 {[%emt 0:05:31]} exd4 {[%emt 0:00:02]} 28. Rd1 {[%emt 0:00:19]} Bg4 {[%emt 0:01:36]} 29. Qd2 {[%emt 0:03:44]} (29. Rb1 $14) 29... Bxc5 $15 {[%emt 0:00:46]} 30. Nxc5 {[%emt 0:03:35]} Qxc5 {[%emt 0:00:10]} 31. Rc1 {[%emt 0:08:16]} ({Better is} 31. Be2 $15) 31... Rxa2 $1 $19 {[%emt 0:01:45]} 32. Qxa2 {[%emt 0:00:32]} (32. Qf4 Qe7 33. e5) 32... Qxc1 {[%emt 0:00:08]} 33. Bc4 {[%emt 0:00:22] [#] Strongly threatening Qa8+.} Bf3 {[%emt 0:00:35] Weighted Error Value: White=0.89/Black=0.08 (flawless)} 0-1

[Event "Czech Championship 2022"]
[Site "Usti nad Labem"]
[Date "2022.05.16"]
[Round "3.4"]
[White "Zwardon, Vojtech"]
[Black "Delgerdalai, Bayarjavkhlan"]
[Result "1-0"]
[ECO "A20"]
[WhiteElo "2482"]
[BlackElo "2119"]
[Annotator "TA"]
[PlyCount "65"]
[EventDate "2022.05.12"]
[EventType "swiss"]
[EventCountry "CZE"]
[SourceTitle "playchess.com"]
[Source "ChessBase"]
[SourceQuality "1"]
[TimeControl "40/5400+30:1800+30"]

{[%evp 10,65,12,5,6,3,0,6,7,0,76,68,68,68,80,85,100,85,183,170,237,243,367,372,385,385,395,373,353,376,872,869,862,848,791,455,441,450,514,505,507,491,580,578,660,642,2387,2272,29985,2439,29986,29965,29961,29963,6647,6536,29985,29986]} 1. c4 {[%emt 0:03:00]} e5 {[%emt 0:00:10]} 2. g3 {[%emt 0:00:04]} c6 {[%emt 0:00:11]} 3. Nf3 {[%emt 0:00:02]} e4 {[%emt 0:00:14]} 4. Nd4 {[%emt 0:00:03]} d5 {[%emt 0:00:12]} 5. cxd5 {[%emt 0:00:03]} Qxd5 {[%emt 0:00:14]} 6. e3 {[%emt 0:00:04]} Nf6 {[%emt 0:00:42] A20: English Opening: 1...e5.} 7. Nc3 {[%emt 0:00:04]} Qe5 {[%emt 0:00:21]} 8. f4 {[%emt 0:00:02]} exf3 {[%emt 0:00:57] The position is equal.} 9. Nxf3 {[%emt 0:00:03] [#]} Qd6 $146 {[%emt 0:02:05]} (9... Qh5 $11) ({Predecessor:} 9... Qc7 10. Bg2 Bb4 11. O-O O-O 12. Qc2 Bg4 13. e4 Re8 14. d3 Na6 15. Bf4 Qb6+ {1-0 (72) Maghsoodloo,P (2676)-Gazik,V (2539) Chess.com INT 2020}) 10. d4 $16 {[%emt 0:03:06]} Bg4 {[%emt 0:04:53]} 11. Bg2 {[%emt 0:00:46]} Nbd7 {[%emt 0:04:18]} 12. e4 {[%emt 0:04:12]} Qe6 {[%emt 0:04:16]} 13. O-O {[%emt 0:05:21][%cal Oh2h3]} O-O-O {[%emt 0:06:57] [#]} (13... Nxe4 $2 14. Nxe4 h6 15. Neg5 $1 $18 {[%mdl 512]}) (13... Be7 $16) 14. Qa4 $1 $18 {[%emt 0:01:02]} Bxf3 {[%emt 0:02:42]} (14... Kb8 $142) 15. Bxf3 {[%emt 0:00:40]} ({Don't do} 15. Rxf3 $6 Kb8 $16) 15... a6 {[%emt 0:11:04]} (15... Kb8 $142 16. Bf4+ Ka8) 16. Bf4 {[%emt 0:06:24][%cal Bc1f4,Bf4d6,Bd6f8][%mdl 32]} Rg8 {[%emt 0:09:52] [#]} 17. Nb5 $1 {[%emt 0:22:20][%mdl 512]} cxb5 {[%emt 0:03:35]} 18. Rac1+ {[%emt 0:00:08]} ({Less strong is} 18. Qa5 Bd6 19. Rac1+ Kb8 $16) 18... Nc5 {[%emt 0:02:46]} 19. Qa5 {[%emt 0:00:17][%csl Gf4][%cal Ra5c7]} Rd7 {[%emt 0:05:16] Inhibits Qc7+.} (19... Qc6 20. dxc5 Rd4) 20. dxc5 {[%emt 0:01:22][%cal Oc5c6] Strongly threatening c6!} Qc6 {[%emt 0:08:08]} 21. Bd6 {[%emt 0:01:39] This bishop pair is nice.} Nxe4 {[%emt 0:02:23]} 22. Qe1 {[%emt 0:00:02]} f5 {[%emt 0:02:08]} 23. Bxe4 {[%emt 0:00:02]} fxe4 {[%emt 0:00:40]} 24. Bxf8 {[%emt 0:00:43]} h5 {[%emt 0:00:53]} 25. Qe2 {[%emt 0:01:41]} h4 {[%emt 0:00:46]} 26. Bd6 {[%emt 0:01:33]} Rh8 {[%emt 0:01:52]} 27. Qg4 {[%emt 0:01:00] Rf7 is the strong threat.} hxg3 {[%emt 0:01:11]} 28. Bxg3 {[%emt 0:00:08] And now Rcd1 would win.} Re8 {[%emt 0:01:43]} 29. Rf7 {[%emt 0:00:17]} (29. Rcd1 $142 Red8 30. b4 g6 31. Rd6 Qc7 32. Rxg6 Kb8 33. Bxc7+ Rxc7 34. Qxe4) 29... Red8 {[%emt 0:00:39]} 30. Rxg7 {[%emt 0:01:18]} Qh6 {[%emt 0:00:59]} 31. Rxd7 {[%emt 0:00:22]} Rxd7 {[%emt 0:00:19]} 32. Rd1 {[%emt 0:00:40][%csl Gd1][%cal Rg4d7]} Qe3+ {[%emt 0:01:21]} 33. Bf2 {[%emt 0:00:07] Black got outplayed after the opening.  Weighted Error Value: White=0.21 (precise) /Black=0.95} 1-0

[Event "Czech Championship 2022"]
[Site "Usti nad Labem"]
[Date "2022.05.16"]
[Round "3.5"]
[White "Stalmach, Richard"]
[Black "Kraus, Tomas"]
[Result "1-0"]
[ECO "D37"]
[WhiteElo "2350"]
[BlackElo "2472"]
[Annotator "TA"]
[PlyCount "69"]
[EventDate "2022.05.12"]
[EventType "swiss"]
[EventCountry "CZE"]
[SourceTitle "playchess.com"]
[Source "ChessBase"]
[SourceQuality "1"]
[TimeControl "40/5400+30:1800+30"]

{[%evp 9,69,31,31,25,33,26,23,23,30,25,27,10,10,0,0,0,-9,0,0,0,0,0,3,-11,-3,-4,-18,-41,-37,-40,-37,-36,30,9,16,25,58,73,227,205,214,178,171,156,139,152,313,180,539,524,944,985,926,939,981,981,973,959,937,928,29993,29994]} 1. d4 {[%emt 0:00:02]} Nf6 {[%emt 0:00:27]} 2. c4 {[%emt 0:00:21]} e6 {[%emt 0:00:30]} 3. Nf3 {[%emt 0:01:00]} d5 {[%emt 0:00:30]} 4. Nc3 {[%emt 0:00:22]} a6 {[%emt 0:00:21]} 5. cxd5 {[%emt 0:01:11]} exd5 {[%emt 0:00:05]} 6. Bg5 {[%emt 0:00:27] D37: Queen's Gambit Declined: 5 Bf4.} Be6 {[%emt 0:00:32]} 7. e3 {[%emt 0:01:17]} Nbd7 {[%emt 0:01:12]} 8. Bd3 {[%emt 0:01:41] White has an edge.} Bd6 {[%emt 0:01:34]} 9. O-O {[%emt 0:00:56]} O-O {[%emt 0:01:35]} 10. Rc1 {[%emt 0:04:36]} h6 {[%emt 0:05:15]} 11. Bf4 {[%emt 0:01:34]} Bxf4 {[%emt 0:05:47]} 12. exf4 {[%emt 0:00:09] [#] And now f5 would win.} Bg4 {[%emt 0:00:04]} 13. h3 {[%emt 0:06:48]} Bxf3 {[%emt 0:00:04]} 14. Qxf3 {[%emt 0:00:03] [#]} c6 $146 {[%emt 0:02:13]} ({Predecessor:} 14... Nb6 15. Ne2 Nc8 16. g4 Nd6 17. Ng3 c6 18. g5 hxg5 19. fxg5 Nfe4 20. h4 Qb6 21. Bxe4 Nxe4 22. Nxe4 dxe4 23. Qxe4 Rfe8 24. Qg4 {½-½ (24) Reis,G (2232)-Knoll,H (2285) Bayern 2020}) 15. g4 {[%emt 0:04:52]} Ne8 {[%emt 0:02:23]} 16. Kh1 {[%emt 0:15:36]} Nd6 {[%emt 0:02:18]} 17. Rg1 {[%emt 0:02:51][%cal Bf1g1,Bg1g3,Bg3g7,Bg7g6][%mdl 32]} Qh4 {[%emt 0:17:39]} 18. Rg3 {[%emt 0:25:16]} Rae8 {[%emt 0:08:24]} 19. g5 {[%emt 0:08:02]} f5 {[%emt 0:12:24][%cal Bf7f5,Bf5e4][%mdl 32] Against Rg4} 20. Rcg1 {[%emt 0:09:30]} Ne4 {[%emt 0:04:54]} (20... hxg5 $15 21. Rxg5 Rf7) 21. Nxe4 $1 $11 {[%emt 0:00:13]} fxe4 {[%emt 0:11:55] [#]} 22. gxh6 $1 {[%emt 0:00:05]} Qxh6 {[%emt 0:03:32]} (22... exf3 $2 23. Rxg7+ Kh8 24. Rh7#) 23. Rxg7+ {[%emt 0:02:14]} Kh8 $2 {[%emt 0:00:21]} (23... Qxg7 $16 24. Rxg7+ Kxg7 25. Qg4+ Kf6 26. Bxa6 Rg8 27. Qxd7 Re7 28. Qd6+ Re6) 24. Qg3 $18 {[%emt 0:01:15][%cal Og7g4]} Nf6 {[%emt 0:09:40] Inhibits Rg4.} 25. Rg6 $40 {[%emt 0:00:07][%mdl 128] White is out for blood. The board is on fire.} Qh7 {[%emt 0:02:47]} 26. Bf1 {[%emt 0:00:15] Qg5 is the strong threat.} Rg8 {[%emt 0:05:06]} (26... Nh5 $2 27. Qg5 Rg8 28. f5 $18) 27. f5 {[%emt 0:00:16]} Re7 $2 {[%emt 0:00:45] A mistake that costs the game.} (27... Rxg6 $16 {keeps fighting.} 28. fxg6 Qh5) 28. Qg5 {[%emt 0:03:54]} (28. Rxg8+ $142 Nxg8 29. Qb8) 28... Rf7 $2 {[%emt 0:00:17]} (28... Rxg6 29. fxg6 Qg7) 29. Rg3 {[%emt 0:01:56] Strongly threatening Qe3.} Rgg7 {[%emt 0:00:41]} 30. Qf4 {[%emt 0:01:29]} Ng8 {[%emt 0:00:27]} 31. Qe5 {[%emt 0:00:43]} a5 {[%emt 0:01:01]} 32. Kh2 {[%emt 0:00:56]} Re7 {[%emt 0:00:53]} 33. f6 {[%emt 0:01:27]} Qxg6 {[%emt 0:00:05]} 34. fxe7 {[%emt 0:00:21]} ({Weaker is} 34. fxg7+ Kh7 $14) ({Less strong is} 34. Rxg6 Rxe5 35. fxg7+ Kh7 $14) 34... Qf6 {[%emt 0:00:23]} 35. e8=Q {[%emt 0:00:28] Weighted Error Value: White=0.11 (very precise) /Black=0.65} 1-0